bitfinex/quotes_SOLUSD_20241210
["timestamp","ask_amount","ask_price","bid_price","bid_amount"]
[1733856303478,0.42553192,210.3,210.17,14.9172673]
[1733856303866,0.42553192,210.3,210.19,14.9172673]
[1733856304070,0.42553192,210.3,210.25,14.9172673]
[1733856304275,0.42553192,210.3,210.24,14.9172673]
[1733856305082,0.42553192,210.3,210.25,14.9172673]
[1733856305694,6.6331,210.31,210.25,14.9172673]
[1733856306194,6.6331,210.31,210.23,14.9172673]
[1733856307905,6.6331,210.31,210.21,14.9172673]
[1733856308591,6.6331,210.31,210.14,0.71338913]
[1733856308592,6.6331,210.31,210.19,14.9172673]
[1733856309710,6.6331,210.31,210.25,14.9172673]
[1733856309872,6.6331,210.36,210.27,14.9172673]
[1733856310584,6.6331,210.36,210.22,0.71323146]
[1733856310585,6.6331,210.36,210.3,14.9172673]
[1733856311076,6.6331,210.36,210.24,0.71313458]
[1733856311077,6.6331,210.36,210.28,14.9172673]
[1733856311279,6.6331,210.36,210.26,23.8976607]
[1733856311513,6.6331,210.36,210.24,23.8976607]
[1733856312796,6.6331,210.36,210.28,23.8976607]
[1733856313918,6.434,210.41,210.32,23.8976607]
[1733856316122,6.434,210.41,210.29,20.0]
[1733856316329,6.434,210.41,210.28,23.8976607]
[1733856317722,6.434,210.41,210.32,23.8976607]
[1733856317920,6.434,210.41,210.3,23.8976607]
[1733856318826,1.6053,210.43,210.34,23.8976607]
[1733856319130,1.6053,210.43,210.3,23.8976607]
[1733856319324,0.12549,210.42,210.3,23.8976607]
[1733856319500,0.25098,210.42,210.3,23.8976607]
[1733856320522,20.25098,210.42,210.3,23.8976607]
[1733856320911,20.0,210.42,210.31,23.776884]
[1733856321224,1.6053,210.43,210.31,23.776884]
[1733856321225,1.6053,210.43,210.36,23.8976607]
[1733856321410,1.6053,210.43,210.34,20.0]
[1733856321610,1.6053,210.43,210.32,23.8976607]
[1733856322114,0.12549,210.42,210.32,23.8976607]
[1733856322324,20.12549,210.42,210.32,23.8976607]
[1733856323236,20.12549,210.42,210.3,23.8976607]
[1733856326826,23.902374,210.41,210.28,23.8976607]
[1733856327026,6.4668,210.35,210.24,23.8976607]
[1733856327236,1.6309,210.34,210.24,23.8976607]
[1733856327424,20.0,210.32,210.22,23.8976607]
[1733856327636,20.0,210.32,210.2,23.8976607]
[1733856328128,0.12549,210.31,210.18,23.8976607]
[1733856328309,6.2458,210.27,210.16,24.4945429]
[1733856329215,20.0,210.24,210.16,24.4945429]
[1733856329543,20.0,210.2,210.16,0.5968822]
[1733856332509,20.0,210.2,210.08,23.8976607]
[1733856332510,0.3906,210.16,210.02,23.8976607]
[1733856332706,0.3906,210.16,210.01,1.5559]
[1733856332707,20.0,210.15,210.01,23.8976607]
[1733856333237,20.0,210.15,209.96,10.17269462]
[1733856333238,0.12549,210.14,210.03,23.8976607]
[1733856333459,0.12549,210.14,210.01,23.8976607]
[1733856333930,20.0,210.15,210.04,23.8976607]
[1733856334151,23.902374,210.14,210.04,23.8976607]
[1733856334366,20.0,210.11,210.0,23.8976607]
[1733856334528,23.902374,210.14,210.0,23.8976607]
[1733856334734,20.0,210.11,210.0,23.8976607]
[1733856335487,20.0,210.11,209.97,0.71410079]
[1733856335488,20.0,210.11,209.99,23.8976607]
[1733856335638,20.0,210.11,209.97,23.8976607]
[1733856335844,0.12549,210.1,209.96,24.4945429]
[1733856336143,20.0,210.07,209.96,24.4945429]
[1733856336350,20.0,210.07,209.96,0.5968822]
[1733856337169,2.30871124,210.15,209.99,23.8976607]
[1733856337380,23.902374,210.14,210.0,23.8976607]
[1733856337908,0.12549,210.14,209.98,23.8976607]
[1733856338263,15.12549,210.14,209.96,0.5968822]
[1733856338561,20.0,210.06,209.96,0.5968822]
[1733856338766,1.5441,210.05,209.96,0.5968822]
[1733856340038,1.5441,210.05,209.97,23.8976607]
[1733856340235,1.5441,210.05,209.96,24.4945429]
[1733856340767,1.5441,210.05,209.96,0.5968822]
[1733856340972,1.5441,210.05,209.97,23.8976607]
[1733856341270,1.5441,210.05,209.96,0.5968822]
[1733856343371,6.6199,210.03,209.96,0.5968822]
[1733856345110,0.12549,210.02,209.96,0.5968822]
[1733856345260,20.0,210.0,209.96,0.5968822]
[1733856345456,20.0,209.99,209.96,0.5968822]
[1733856346184,0.12549,210.01,209.96,0.5968822]
[1733856346394,20.0,209.99,209.96,0.5968822]
[1733856346571,0.12549,209.98,209.96,0.5968822]
[1733856347279,20.0,209.99,209.96,0.5968822]
[1733856347487,20.0,210.0,209.96,0.5968822]
[1733856348888,0.12549,209.99,209.96,0.5968822]
[1733856349065,23.902374,209.99,209.96,0.5968822]
[1733856349830,2.44806623,210.02,209.96,0.5968822]
[1733856350711,23.902374,210.01,209.96,0.5968822]
[1733856350897,24.32790591,210.01,209.96,0.5968822]
[1733856351313,23.776884,209.97,209.96,0.5968822]
[1733856351517,23.902374,209.97,209.96,0.5968822]
[1733856351718,24.32790591,209.97,209.96,8.22e-05]
[1733856351922,20.0,209.92,209.81,1.5144]
[1733856352197,20.0,209.9,209.81,1.5144]
[1733856352402,20.0,209.9,209.82,23.8976607]
[1733856352597,1.6632,209.96,209.83,23.8976607]
[1733856352598,0.42553191,209.89,209.83,23.8976607]
[1733856352829,0.42553191,209.89,209.86,23.8976607]
[1733856353001,0.42553191,209.89,209.88,23.8976607]
[1733856353202,0.42553191,209.89,209.88,48.0510147]
[1733856353203,0.00391152,209.89,209.88,48.0510147]
[1733856353420,30.0,210.32,209.92,27.626]
[1733856353421,6.6199,210.1,209.92,27.626]
[1733856353714,6.6199,210.1,209.98,23.8976607]
[1733856354303,6.6199,210.1,210.01,0.12549]
[1733856354508,0.86903092,210.09,210.0,23.8976607]
[1733856354898,0.86903092,210.09,210.02,23.8976607]
[1733856355309,0.86903092,210.09,210.01,0.12549]
[1733856355508,0.86903092,210.09,210.02,23.8976607]
[1733856355892,0.86903092,210.09,210.0,23.8976607]
[1733856356320,20.0,210.11,210.0,23.8976607]
[1733856356321,0.12549,210.1,210.0,23.8976607]
[1733856357204,20.0,210.07,209.96,23.8976607]
[1733856357794,0.12549,210.09,209.96,23.8976607]
[1733856358003,20.12549,210.09,209.96,23.8976607]
[1733856358446,0.12549,210.1,209.98,23.8976607]
[1733856358728,20.0,210.09,209.98,23.8976607]
[1733856359127,2.8475848,210.13,210.02,23.8976607]
[1733856359325,2.8475848,210.13,210.04,23.8976607]
[1733856359500,2.8475848,210.13,210.02,23.8976607]
[1733856360467,2.8475848,210.13,210.0,0.12549]
[1733856360468,2.32892403,210.16,210.04,23.8976607]
[1733856360634,2.88077765,210.17,210.06,23.8976607]
[1733856360801,2.34660916,210.19,210.1,23.8976607]
[1733856361002,15.0,210.26,210.1,23.8976607]
[1733856361333,0.12549,210.25,210.1,23.8976607]
[1733856361628,2.86991326,210.19,210.1,23.8976607]
[1733856361832,2.86991326,210.19,210.14,23.8976607]
[1733856362420,2.86991326,210.19,210.12,23.8976607]
[1733856362603,21.0229,210.3,210.12,23.8976607]
[1733856362803,0.12549,210.29,210.12,23.8976607]
[1733856363011,20.0,210.27,210.12,23.8976607]
[1733856363605,8.31048219,210.3,210.16,23.8976607]
[1733856364031,2.79439919,210.25,210.16,23.8976607]
[1733856364227,8.31048219,210.3,210.16,23.8976607]
[1733856364429,0.12549,210.29,210.16,23.8976607]
[1733856364759,2.85583653,210.27,210.15,23.8976607]
[1733856364914,2.28758219,210.3,210.15,23.8976607]
[1733856365116,0.12549,210.31,210.15,23.8976607]
[1733856365337,0.12549,210.31,210.13,23.8976607]
[1733856365644,0.12549,210.31,210.11,23.8976607]
[1733856365645,20.0,210.28,210.11,23.8976607]
[1733856365818,20.0,210.27,210.09,23.8976607]
[1733856366009,23.902374,210.25,210.08,1.6369]
[1733856366209,23.902374,210.21,210.08,1.6369]
[1733856366913,20.0,210.28,210.13,23.8976607]
[1733856367116,20.0,210.28,210.1,0.12549]
[1733856367117,3.83869065,210.32,210.15,23.8976607]
[1733856367637,0.12549,210.31,210.15,23.8976607]
[1733856368318,20.12549,210.31,210.15,23.8976607]
[1733856368515,20.0,210.27,210.15,23.8976607]
[1733856369415,23.776884,210.26,210.13,23.8976607]
[1733856369615,23.776884,210.22,210.09,6.227]
[1733856369916,23.776884,210.22,209.98,47.31244069]
[1733856369917,23.776884,210.17,210.04,23.8976607]
[1733856370318,20.0,210.14,210.04,23.8976607]
[1733856370719,20.0,210.14,210.05,0.12549]
[1733856370920,22.33858661,210.18,210.04,23.8976607]
[1733856371127,23.902374,210.17,210.04,23.8976607]
[1733856371322,20.0,210.14,210.04,23.8976607]
[1733856371558,23.902374,210.17,210.04,23.8976607]
[1733856371777,20.0,210.14,210.04,23.8976607]
[1733856372069,2.29817907,210.2,210.08,23.8976607]
[1733856372358,15.0,210.28,210.08,23.8976607]
[1733856372359,7.527,210.33,210.19,23.8976607]
[1733856372747,7.527,210.33,210.21,23.8976607]
[1733856372949,6.5105,210.39,210.25,23.8976607]
[1733856373137,2.29726071,210.4,210.28,0.12549]
[1733856373341,1.5925,210.41,210.29,23.8976607]
[1733856373540,3.86278889,210.41,210.25,23.8976607]
[1733856373741,15.0,210.4,210.21,23.8976607]
[1733856373934,1.5925,210.41,210.23,23.8976607]
[1733856374539,1.5925,210.41,210.27,23.8976607]
[1733856375070,0.12549,210.4,210.27,23.8976607]
[1733856375249,1.5925,210.41,210.26,23.776884]
[1733856375491,1.5925,210.41,210.25,24.0231507]
[1733856375758,0.12549,210.4,210.25,24.0231507]
[1733856375962,0.12549,210.4,210.25,23.8976607]
[1733856376270,0.12549,210.4,210.27,23.8976607]
[1733856376570,24.027864,210.4,210.25,23.8976607]
[1733856377079,24.027864,210.4,210.21,23.8976607]
[1733856377370,6.5105,210.38,210.19,23.8976607]
[1733856377575,0.12549,210.32,210.15,23.8976607]
[1733856377738,23.776884,210.26,210.13,23.8976607]
[1733856377939,0.12549,210.25,210.13,23.8976607]
[1733856378174,20.0,210.23,210.11,23.8976607]
[1733856378988,20.0,210.19,210.06,23.8976607]
[1733856379269,0.12549,210.17,210.04,38.91606637]
[1733856379671,20.0,210.15,210.04,38.91606637]
[1733856380979,0.12549,210.22,210.1,38.91606637]
[1733856381273,8.77777907,210.23,210.12,38.91606637]
[1733856381681,23.776884,210.22,210.1,38.91606637]
[1733856381837,0.12549,210.21,210.1,38.91606637]
[1733856382257,0.12549,210.21,210.12,38.91606637]
[1733856382583,2.24615393,210.24,210.14,38.91606637]
[1733856382740,6.5105,210.29,210.14,38.91606637]
[1733856382944,0.12549,210.26,210.14,38.91606637]
[1733856383561,3.93696782,210.27,210.15,0.25098]
[1733856383869,1.5925,210.27,210.16,38.91606637]
[1733856384175,6.5105,210.29,210.16,38.91606637]
[1733856384874,23.776884,210.28,210.16,38.91606637]
[1733856385373,23.776884,210.26,210.14,38.91606637]
[1733856385670,2.85642172,210.27,210.18,38.91606637]
[1733856385969,1.5925,210.34,210.19,0.12549]
[1733856386342,2.90386612,210.3,210.18,38.91606637]
[1733856386543,0.12549,210.29,210.18,38.91606637]
[1733856387167,1.5925,210.34,210.15,0.83900716]
[1733856387168,3.87708415,210.34,210.22,38.91606637]
[1733856387481,1.5925,210.34,210.22,38.91606637]
[1733856387788,2.85416391,210.31,210.22,38.91606637]
[1733856389209,0.12549,210.3,210.2,38.91606637]
[1733856390008,0.12549,210.3,210.18,38.91606637]
[1733856390217,20.0,210.27,210.16,38.91606637]
[1733856391718,24.027864,210.3,210.11,0.7135033]
[1733856391719,0.12549,210.3,210.18,38.91606637]
[1733856392000,2.85416391,210.31,210.2,38.91606637]
[1733856392211,1.5925,210.34,210.22,38.91606637]
[1733856392670,1.5925,210.34,210.23,0.12549]
[1733856392874,0.86903092,210.37,210.24,38.91606637]
[1733856393076,2.90759705,210.33,210.24,38.91606637]
[1733856394992,6.5105,210.35,210.24,38.91606637]
[1733856395289,2.21365017,210.39,210.28,38.91606637]
[1733856395590,2.83619942,210.36,210.24,38.91606637]
[1733856396226,0.12549,210.35,210.24,38.91606637]
[1733856396720,23.902374,210.35,210.24,38.91606637]
[1733856396903,38.142374,210.35,210.24,38.91606637]
[1733856397113,23.902374,210.35,210.24,38.91606637]
[1733856397500,23.902374,210.35,210.2,38.91606637]
[1733856397501,23.776884,210.31,210.2,38.91606637]
[1733856397812,20.0,210.28,210.18,38.91606637]
[1733856401394,20.0,210.24,210.13,23.93268648]
[1733856402193,23.776884,210.23,210.13,23.93268648]
[1733856402393,23.776884,210.23,210.11,23.93268648]
[1733856402624,20.0,210.2,210.11,23.93268648]
[1733856402800,20.0,210.2,210.03,2.22113676]
[1733856402801,23.776884,210.19,210.07,23.93268648]
[1733856402987,20.0,210.16,210.05,23.93268648]
[1733856403922,26.5989,210.16,210.04,23.93268648]
[1733856404135,26.5989,210.16,210.05,23.93268648]
[1733856404324,23.776884,210.19,210.09,23.93268648]
[1733856404613,6.5989,210.21,210.11,23.93268648]
[1733856404827,6.5989,210.21,210.14,23.93268648]
[1733856405018,2.92455033,210.25,210.14,23.93268648]
[1733856405328,2.92455033,210.25,210.16,23.93268648]
[1733856407112,6.5989,210.26,210.18,23.93268648]
[1733856408331,6.5989,210.26,210.16,23.93268648]
[1733856409835,0.12549,210.25,210.16,23.93268648]
[1733856410126,23.902374,210.25,210.14,23.93268648]
[1733856410847,0.42553192,210.24,210.16,23.93268648]
[1733856411944,0.42553192,210.24,210.2,23.93268648]
[1733856412441,0.42553192,210.24,210.22,23.93268648]
[1733856413221,0.42553192,210.24,210.2,23.93268648]
[1733856415645,0.42553192,210.24,210.23,0.25098]
[1733856416518,0.42553192,210.24,210.23,0.12549]
[1733856417429,0.42553192,210.24,210.22,23.93268648]
[1733856417630,0.42553192,210.24,210.2,23.93268648]
[1733856418364,0.42553192,210.24,210.21,0.12549]
[1733856418550,0.42553192,210.24,210.22,23.93268648]
[1733856418756,0.42553192,210.24,210.23,0.83885882]
[1733856419157,0.42553192,210.24,210.23,24.74123282]
[1733856419731,0.42553192,210.24,210.23,24.86672282]
[1733856419930,0.42553192,210.24,210.23,31.38712282]
[1733856421255,0.42553192,210.24,210.23,43.27882282]
[1733856423341,0.42553192,210.24,210.23,31.38712282]
[1733856423734,0.42553192,210.24,210.23,43.27882282]
[1733856424149,2.85032955,210.41,210.32,23.93268648]
[1733856424791,1.5831,210.43,210.34,23.93268648]
[1733856425091,1.5831,210.43,210.36,23.93268648]
[1733856425378,6.1383,210.46,210.4,23.93268648]
[1733856425595,0.5968822,210.48,210.42,23.93268648]
[1733856426197,0.5968822,210.48,210.44,23.93268648]
[1733856426870,0.5968822,210.48,210.4,2.27874504]
[1733856426871,0.5968822,210.48,210.46,23.93268648]
[1733856427254,0.5968822,210.48,210.4,43.93268648]
[1733856427462,0.5968822,210.48,210.38,23.93268648]
[1733856427683,0.5968822,210.48,210.4,23.93268648]
[1733856428061,0.5968822,210.48,210.42,23.93268648]
[1733856431075,0.5968822,210.48,210.46,23.93268648]
[1733856431553,0.5968822,210.48,210.47,0.12549]
[1733856431758,0.5968822,210.48,210.47,24.86581123]
[1733856432199,0.5968822,210.48,210.47,24.74032123]
[1733856433103,0.5968822,210.48,210.47,24.86581123]
[1733856433918,2.23915268,210.64,210.47,24.86581123]
[1733856433919,6.293,210.67,210.51,24.153354]
[1733856434063,6.293,210.67,210.57,23.93268648]
[1733856434064,3.74578523,210.66,210.57,23.93268648]
[1733856434262,15.0,210.74,210.63,23.93268648]
[1733856434263,0.86903092,210.65,210.63,23.93268648]
[1733856434677,0.86903092,210.65,210.61,23.93268648]
[1733856435383,0.86903092,210.65,210.62,0.12549]
[1733856435771,0.86903092,210.65,210.64,24.153354]
[1733856435982,0.86903092,210.65,210.64,0.12549]
[1733856436476,0.86903092,210.65,210.64,24.153354]
[1733856437381,0.00830185,210.65,210.64,24.153354]
[1733856437773,0.00830185,210.65,210.64,24.027864]
[1733856437979,0.00830185,210.65,210.61,23.93268648]
[1733856438481,0.00830185,210.65,210.57,23.93268648]
[1733856438800,20.00830185,210.65,210.55,23.93268648]
[1733856439008,20.00830185,210.65,210.53,23.93268648]
[1733856439606,20.0,210.61,210.51,23.93268648]
[1733856440197,0.12549,210.64,210.51,23.93268648]
[1733856440517,20.00830185,210.65,210.55,23.93268648]
[1733856440697,20.00830185,210.65,210.47,16.5858]
[1733856440698,20.00830185,210.65,210.57,23.93268648]
[1733856441023,0.00830185,210.65,210.6,23.776884]
[1733856441690,0.00830185,210.65,210.61,24.05817648]
[1733856441894,0.00830185,210.65,210.64,23.776884]
[1733856442105,0.00830185,210.65,210.64,24.61430655]
[1733856442308,0.00830185,210.65,210.64,23.902374]
[1733856443225,0.00830185,210.65,210.64,23.776884]
[1733856443518,0.00830185,210.65,210.6,23.776884]
[1733856443921,0.00830185,210.65,210.57,23.93268648]
[1733856444130,0.00830185,210.65,210.53,23.93268648]
[1733856444419,0.00830185,210.65,210.55,23.93268648]
[1733856445327,0.00830185,210.65,210.56,0.12549]
[1733856445504,0.00830185,210.65,210.58,0.12549]
[1733856445700,0.00830185,210.65,210.58,23.902374]
[1733856446225,0.00830185,210.65,210.58,24.61448494]
[1733856447931,0.00830185,210.65,210.58,23.902374]
[1733856449229,0.00830185,210.65,210.62,23.902374]
[1733856449430,0.00830185,210.65,210.64,24.027864]
[1733856449606,0.00830185,210.65,210.64,23.902374]
[1733856450006,0.00830185,210.65,210.64,24.153354]
[1733856450219,0.00830185,210.65,210.64,24.86519143]
[1733856451800,0.5968822,210.69,210.62,23.776884]
[1733856452126,0.5968822,210.69,210.51,50.93920418]
[1733856452127,0.5968822,210.69,210.55,23.93268648]
[1733856452498,0.5968822,210.69,210.56,0.25098]
[1733856452698,0.5968822,210.69,210.58,0.12549]
[1733856452924,0.5968822,210.69,210.6,0.12549]
[1733856453219,0.5968822,210.69,210.6,0.25098]
[1733856453807,0.5968822,210.69,210.59,0.71205104]
[1733856454127,0.5968822,210.69,210.59,0.12549]
[1733856455125,0.5968822,210.69,210.58,23.776884]
[1733856455516,0.5968822,210.69,210.59,0.12549]
[1733856456934,0.5968822,210.69,210.61,24.05817648]
[1733856457114,0.5968822,210.69,210.62,23.776884]
[1733856457621,0.5968822,210.69,210.61,0.25098]
[1733856457821,0.5968822,210.69,210.63,0.12549]
[1733856459510,0.5968822,210.69,210.65,0.12549]
[1733856459710,0.00719401,210.69,210.68,24.05817648]
[1733856459917,0.00719401,210.69,210.68,48.08604048]
[1733856461844,2.81163475,210.84,210.74,23.776884]
[1733856462253,6.1295,210.85,210.74,0.12549]
[1733856462427,6.1295,210.85,210.76,23.902374]
[1733856464153,6.1295,210.85,210.75,0.12549]
[1733856464361,20.0,210.82,210.75,0.25098]
[1733856464757,20.0,210.82,210.74,47.70957048]
[1733856465058,20.0,210.82,210.74,23.776884]
[1733856465267,20.0,210.82,210.67,23.93268648]
[1733856465454,20.0,210.82,210.65,23.93268648]
[1733856465455,20.12549,210.81,210.65,23.93268648]
[1733856465676,20.0,210.79,210.63,30.58888648]
[1733856465828,20.0,210.79,210.61,0.71175974]
[1733856465829,20.12549,210.78,210.61,24.64444622]
[1733856466039,20.12549,210.78,210.62,0.25098]
[1733856466341,1.5706,210.77,210.62,0.25098]
[1733856466857,1.5706,210.77,210.64,23.902374]
[1733856467042,1.5706,210.77,210.66,24.05817648]
[1733856467249,1.5706,210.77,210.68,47.96055048]
[1733856467844,1.5706,210.82,210.73,23.93268648]
[1733856468185,1.5706,210.82,210.75,0.12549]
[1733856468335,1.5706,210.82,210.74,24.48842622]
[1733856468540,1.5706,210.82,210.73,23.776884]
[1733856469477,21.5706,210.82,210.67,24.64416575]
[1733856469651,20.12549,210.81,210.64,23.93268648]
[1733856469972,20.0,210.79,210.63,23.93268648]
[1733856470268,0.12549,210.78,210.64,0.25098]
[1733856470485,20.0,210.79,210.66,24.18366648]
[1733856470669,0.25098,210.81,210.66,24.18366648]
[1733856470846,0.42553191,210.78,210.7,23.93268648]
[1733856471048,0.42553191,210.78,210.72,0.12549]
[1733856471267,0.42553191,210.78,210.72,23.902374]
[1733856471972,0.42553191,210.78,210.74,23.776884]
[1733856472268,0.42553191,210.78,210.75,39.04441793]
[1733856472473,0.42553191,210.78,210.77,62.82130193]
[1733856474168,0.42553191,210.78,210.77,63.53270197]
[1733856476471,0.42553191,210.78,210.77,24.86475404]
[1733856477351,0.42553191,210.78,210.77,0.71140004]
[1733856478270,0.42553191,210.78,210.77,0.83689004]
[1733856478686,0.42553191,210.78,210.77,1.08787004]
[1733856478975,0.42553191,210.78,210.77,24.86475404]
[1733856481556,0.02054082,210.78,210.77,39.86475404]
[1733856482095,0.02054082,210.78,210.77,24.86475404]
[1733856482585,0.02054082,210.78,210.77,39.37934797]
[1733856482881,0.02054082,210.78,210.75,38.66794793]
[1733856483086,0.02054082,210.78,210.71,8.1643]
[1733856483087,0.02054082,210.78,210.72,38.66794793]
[1733856483290,0.02054082,210.78,210.72,39.37952467]
[1733856483784,0.02054082,210.78,210.72,38.66794793]
[1733856484159,0.02054082,210.78,210.67,0.71156985]
[1733856484502,0.02054082,210.78,210.68,0.12549]
[1733856484673,0.02054082,210.78,210.62,39.37970221]
[1733856484886,0.02054082,210.78,210.62,0.71175428]
[1733856485195,20.0,210.74,210.6,0.71190819]
[1733856485401,20.0,210.74,210.63,0.12549]
[1733856485588,0.02054082,210.73,210.67,0.12549]
[1733856485890,0.02054082,210.73,210.62,38.66794793]
[1733856486195,0.02054082,210.73,210.64,0.12549]
[1733856486371,0.02054082,210.73,210.64,23.902374]
[1733856486992,0.02054082,210.73,210.64,23.776884]
[1733856487195,0.02054082,210.73,210.6,38.66794793]
[1733856487385,0.02054082,210.73,210.6,39.37989991]
[1733856487578,0.02054082,210.73,210.61,0.25098]
[1733856487896,0.02054082,210.73,210.62,0.71190107]
[1733856488094,0.02054082,210.73,210.59,38.66794793]
[1733856488300,0.02054082,210.73,210.6,0.71199252]
[1733856488484,0.02054082,210.73,210.61,38.91892793]
[1733856488801,0.02054082,210.73,210.61,0.12549]
[1733856489492,0.02054082,210.73,210.61,23.902374]
[1733856489792,0.02054082,210.73,210.63,23.776884]
[1733856490597,0.02054082,210.73,210.66,0.12549]
[1733856490891,0.02054082,210.73,210.68,23.776884]
[1733856491097,0.02054082,210.73,210.69,0.71165224]
[1733856491274,0.02054082,210.73,210.7,23.776884]
[1733856491481,0.02054082,210.73,210.71,0.71165029]
[1733856491905,0.02054082,210.73,210.7,23.776884]
[1733856492694,0.02054082,210.73,210.65,23.776884]
[1733856492914,0.02054082,210.73,210.72,38.66794793]
[1733856493206,0.02054082,210.73,210.72,48.65122962]
[1733856493900,0.02054082,210.73,210.72,360.65122962]
[1733856494081,0.02054082,210.73,210.72,359.93979256]
[1733856496170,0.02054082,210.73,210.72,23.902374]
[1733856496506,0.02054082,210.73,210.68,0.71152999]
[1733856496793,0.02054082,210.73,210.68,24.49796855]
[1733856497007,0.02054082,210.73,210.68,0.71152999]
[1733856497493,0.02054082,210.73,210.65,26.11268145]
[1733856498693,0.02054082,210.73,210.65,0.71174289]
[1733856498991,0.02054082,210.73,210.66,0.25098]
[1733856500008,0.02054082,210.73,210.67,0.12549]
[1733856500209,0.02054082,210.73,210.68,23.902374]
[1733856501581,0.02054082,210.73,210.63,0.7117164]
[1733856501786,0.02054082,210.73,210.59,38.68862097]
[1733856502110,20.02054082,210.73,210.58,0.71187252]
[1733856502717,20.02054082,210.73,210.59,0.25098]
[1733856502895,20.02054082,210.73,210.61,0.12549]
[1733856503496,20.02054082,210.73,210.61,23.902374]
[1733856503889,20.02054082,210.73,210.63,23.776884]
[1733856504319,20.02054082,210.73,210.61,24.027864]
[1733856504487,20.02054082,210.73,210.61,23.776884]
[1733856504890,20.02054082,210.73,210.62,0.8375028]
[1733856505095,0.02054082,210.73,210.64,0.37647]
[1733856505304,0.02054082,210.73,210.64,1.08826113]
[1733856505503,0.02054082,210.73,210.65,23.776884]
[1733856506303,0.02054082,210.73,210.66,0.83726541]
[1733856506518,0.02054082,210.73,210.67,23.776884]
[1733856507413,0.02054082,210.73,210.68,0.12549]
[1733856507630,0.02054082,210.73,210.7,23.776884]
[1733856507993,0.02054082,210.73,210.72,23.776884]
[1733856508209,0.02054082,210.73,210.71,0.71162921]
[1733856508429,0.02054082,210.73,210.67,23.776884]
[1733856508722,0.02054082,210.73,210.68,0.71171003]
[1733856509421,0.02054082,210.73,210.66,23.776884]
[1733856509931,0.02054082,210.73,210.6,0.71179116]
[1733856510106,0.02054082,210.73,210.61,0.25098]
[1733856510426,0.02054082,210.73,210.62,0.71187356]
[1733856511294,0.02054082,210.73,210.62,0.12549]
[1733856511694,0.02054082,210.73,210.64,23.776884]
[1733856511891,0.02054082,210.73,210.67,0.12549]
[1733856512127,0.02054082,210.73,210.68,23.902374]
[1733856512302,0.02054082,210.73,210.69,0.71161405]
[1733856512498,0.02054082,210.73,210.7,23.776884]
[1733856512824,0.02054082,210.73,210.71,0.71164984]
[1733856513595,0.02054082,210.73,210.7,23.902374]
[1733856513829,0.02054082,210.73,210.71,0.71163374]
[1733856514212,0.02054082,210.73,210.7,23.776884]
[1733856515531,0.02054082,210.73,210.67,23.776884]
[1733856515901,0.02054082,210.73,210.68,0.71174144]
[1733856516535,0.02054082,210.73,210.62,0.71180287]
[1733856517434,0.02054082,210.73,210.63,0.25098]
[1733856517728,0.02054082,210.73,210.65,0.12549]
[1733856518446,0.02054082,210.73,210.65,23.902374]
[1733856520930,0.02054082,210.73,210.72,24.48844586]
[1733856521240,0.02054082,210.73,210.66,23.776884]
[1733856521532,0.02054082,210.73,210.63,0.71172218]
[1733856521707,0.02054082,210.73,210.64,0.25098]
[1733856522042,0.02054082,210.73,210.66,0.12549]
[1733856522211,0.02054082,210.73,210.66,1.11900023]
[1733856522411,0.02054082,210.73,210.67,0.71176895]
[1733856522913,0.02054082,210.73,210.68,0.37647]
[1733856523126,0.02054082,210.73,210.7,24.153354]
[1733856523340,0.02054082,210.73,210.72,23.902374]
[1733856523640,0.02054082,210.73,210.71,0.71156808]
[1733856523816,0.02054082,210.73,210.68,23.776884]
[1733856524017,0.02054082,210.73,210.67,23.776884]
[1733856524214,0.02054082,210.73,210.66,0.86802023]
[1733856526249,0.02054082,210.73,210.67,24.61425493]
[1733856529633,0.02054082,210.73,210.68,0.86793783]
[1733856530941,0.02054082,210.73,210.69,24.61414497]
[1733856531114,0.02054082,210.73,210.7,0.86785544]
[1733856532925,0.02054082,210.73,210.61,2.22732376]
[1733856533128,0.02054082,210.73,210.62,0.86818508]
[1733856533945,0.02054082,210.73,210.63,0.25098]
[1733856534114,0.02054082,210.73,210.63,0.96289225]
[1733856534315,0.02054082,210.73,210.65,0.12549]
[1733856534545,0.02054082,210.73,210.65,23.902374]
[1733856535132,0.02054082,210.73,210.69,23.902374]
[1733856535355,0.02054082,210.73,210.71,23.902374]
[1733856535535,0.02054082,210.73,210.72,24.6139047]
[1733856536047,0.02054082,210.73,210.72,0.8370207]